[Event "December 12 Late 2023"]
[Site "https://www.chess.com"]
[Date "2023.12.12"]
[Round "6"]
[White "Boyer, Mahel"]
[Black "Kazakouski, Valery"]
[Result "0-1"]
[Board "30"]
[TimeControl "180+1"]
[WhiteFideId "45102422"]
[BlackFideId "13507443"]
[WhiteElo "2621"]
[BlackElo "2822"]
[WhiteTeam "FRA"]
[BlackTeam "LTU"]
[WhiteClock "0:00:00"]
[BlackClock "0:00:13"]

1. e4 {[%clk 0:03:00]}  c5 {[%clk 0:02:59]} 2. d3 {[%clk 0:02:45]}  Nc6 {[%clk 0:02:59]} 3. g3 {[%clk 0:02:44]}  g6 {[%clk 0:02:59]} 4. Bg2 {[%clk 0:02:44]}  Bg7 {[%clk 0:03:00]} 5. f4 {[%clk 0:02:45]}  d6 {[%clk 0:02:58]} 6. Nf3 {[%clk 0:02:45]}  b5 {[%clk 0:02:56]} 7. O-O {[%clk 0:02:45]}  e6 {[%clk 0:02:51]} 8. c3 {[%clk 0:02:31]}  Nge7 {[%clk 0:02:47]} 9. d4 {[%clk 0:02:30]}  cxd4 {[%clk 0:02:44]} 10. cxd4 {[%clk 0:02:30]}  Qb6 {[%clk 0:02:44]} 11. Be3 {[%clk 0:02:30]}  d5 {[%clk 0:02:42]} 12. e5 {[%clk 0:02:30]}  b4 {[%clk 0:02:42]} 13. Nbd2 {[%clk 0:02:30]}  Nf5 {[%clk 0:02:38]} 14. Bf2 {[%clk 0:02:30]}  Ba6 {[%clk 0:02:31]} 15. Re1 {[%clk 0:02:30]}  Na5 {[%clk 0:02:31]} 16. Nb3 {[%clk 0:01:01]}  Nxb3 {[%clk 0:02:22]} 17. axb3 {[%clk 0:01:02]}  O-O {[%clk 0:02:12]} 18. g4 {[%clk 0:01:01]}  Ne7 {[%clk 0:02:12]} 19. Bh4 {[%clk 0:01:00]}  Nc6 {[%clk 0:02:07]} 20. Bf6 {[%clk 0:01:00]}  Bb5 {[%clk 0:01:58]} 21. Qd2 {[%clk 0:00:59]}  Rfc8 {[%clk 0:01:56]} 22. Bxg7 {[%clk 0:00:49]}  Kxg7 {[%clk 0:01:56]} 23. f5 {[%clk 0:00:50]}  h6 {[%clk 0:01:46]} 24. f6+ {[%clk 0:00:31]}  Kh7 {[%clk 0:01:46]} 25. Rec1 {[%clk 0:00:16]}  Rc7 {[%clk 0:01:46]} 26. h4 {[%clk 0:00:11]}  Rac8 {[%clk 0:01:44]} 27. Kh1 {[%clk 0:00:04]}  a5 {[%clk 0:01:36]} 28. Rc5 {[%clk 0:00:02]}  Na7 {[%clk 0:01:23]} 29. Rxc7 {[%clk 0:00:02]}  Qxc7 {[%clk 0:01:24]} 30. h5 {[%clk 0:00:01]}  g5 {[%clk 0:01:20]} 31. Nxg5+ {[%clk 0:00:01]}  hxg5 {[%clk 0:01:17]} 32. Qxg5 {[%clk 0:00:01]}  Rg8 {[%clk 0:01:17]} 33. Rc1 {[%clk 0:00:02]}  Nc6 {[%clk 0:01:11]} 34. Qf4 {[%clk 0:00:02]}  Qb6 {[%clk 0:01:08]} 35. Rc5 {[%clk 0:00:02]}  Be2 {[%clk 0:00:53]} 36. g5 {[%clk 0:00:03]}  Bxh5 {[%clk 0:00:27]} 37. Qh4 {[%clk 0:00:03]}  Kg6 {[%clk 0:00:27]} 38. Bf1 {[%clk 0:00:03]}  Nxe5 {[%clk 0:00:26]} 39. dxe5 {[%clk 0:00:03]}  Bf3+ {[%clk 0:00:26]} 40. Kh2 {[%clk 0:00:01]}  Qxc5 {[%clk 0:00:24]} 41. Bd3+ {[%clk 0:00:01]}  Be4 {[%clk 0:00:23]} 42. Bxe4+ {[%clk 0:00:01]}  dxe4 {[%clk 0:00:24]} 43. Qxe4+ {[%clk 0:00:02]}  Kxg5 {[%clk 0:00:17]} 44. Qg2+ {[%clk 0:00:02]}  Kf5 {[%clk 0:00:17]} 45. Qxg8 {[%clk 0:00:02]}  Qxe5+ {[%clk 0:00:17]} 46. Kh1 {[%clk 0:00:02]}  Qxf6 {[%clk 0:00:15]} 47. Qa8 {[%clk 0:00:02]}  Qe5 {[%clk 0:00:13]} 48. Qf3+ {[%clk 0:00:02]}  Kg6 {[%clk 0:00:13]} 49. Qd3+ {[%clk 0:00:01]}  Kf6 {[%clk 0:00:13]} 50. Qd8+ {[%clk 0:00:02]}  Kg7 {[%clk 0:00:13]} 51. Kg2 {[%clk 0:00:02]}  Qd5+ {[%clk 0:00:13]} 52. Kg1 {[%clk 0:00:00]}  Qxd8 {[%clk 0:00:13]} 0-1

[Event "December 12 Late 2023"]
[Site "https://www.chess.com"]
[Date "2023.12.12"]
[Round "6"]
[White "Postny, Evgeny"]
[Black "Sanchez Enriquez, Oscar Gerardo"]
[Result "1-0"]
[Board "33"]
[TimeControl "180+1"]
[WhiteFideId "2804344"]
[BlackFideId "5106311"]
[WhiteElo "2762"]
[BlackElo "2526"]
[WhiteTeam "ISR"]
[BlackTeam "MEX"]
[WhiteClock "0:00:06"]
[BlackClock "0:00:04"]

1. e4 {[%clk 0:03:00]}  d6 {[%clk 0:03:00]} 2. d4 {[%clk 0:02:59]}  Nf6 {[%clk 0:03:00]} 3. Nc3 {[%clk 0:02:58]}  g6 {[%clk 0:03:01]} 4. f3 {[%clk 0:02:56]}  c6 {[%clk 0:03:01]} 5. Be3 {[%clk 0:02:57]}  Nbd7 {[%clk 0:03:02]} 6. Qd2 {[%clk 0:02:57]}  Qa5 {[%clk 0:03:03]} 7. O-O-O {[%clk 0:02:57]}  b5 {[%clk 0:03:02]} 8. Kb1 {[%clk 0:02:57]}  Nb6 {[%clk 0:03:02]} 9. Bd3 {[%clk 0:02:54]}  Rb8 {[%clk 0:03:02]} 10. Nce2 {[%clk 0:02:53]}  Qxd2 {[%clk 0:03:00]} 11. Rxd2 {[%clk 0:02:52]}  Nc4 {[%clk 0:03:01]} 12. Bxc4 {[%clk 0:02:49]}  bxc4 {[%clk 0:03:02]} 13. Nc3 {[%clk 0:02:41]}  d5 {[%clk 0:03:01]} 14. Bf4 {[%clk 0:02:38]}  Rb7 {[%clk 0:02:59]} 15. Be5 {[%clk 0:02:39]}  Be6 {[%clk 0:03:00]} 16. Nge2 {[%clk 0:02:36]}  Bh6 {[%clk 0:03:00]} 17. Bf4 {[%clk 0:02:21]}  Bg7 {[%clk 0:02:53]} 18. Be5 {[%clk 0:02:20]}  Bh6 {[%clk 0:02:52]} 19. Rdd1 {[%clk 0:02:20]}  O-O {[%clk 0:02:52]} 20. Nf4 {[%clk 0:02:09]}  Nd7 {[%clk 0:01:54]} 21. exd5 {[%clk 0:01:55]}  cxd5 {[%clk 0:01:53]} 22. Nfxd5 {[%clk 0:01:45]}  Nxe5 {[%clk 0:01:53]} 23. dxe5 {[%clk 0:01:46]}  Rfb8 {[%clk 0:01:53]} 24. b3 {[%clk 0:01:44]}  a5 {[%clk 0:01:44]} 25. Na4 {[%clk 0:01:39]}  Rc8 {[%clk 0:01:30]} 26. Kb2 {[%clk 0:01:21]}  Bg7 {[%clk 0:01:03]} 27. Rhe1 {[%clk 0:01:18]}  g5 {[%clk 0:01:03]} 28. g3 {[%clk 0:01:10]}  h5 {[%clk 0:01:01]} 29. f4 {[%clk 0:01:10]}  Bg4 {[%clk 0:00:54]} 30. Rd4 {[%clk 0:01:08]}  cxb3 {[%clk 0:00:53]} 31. axb3 {[%clk 0:01:05]}  Kh7 {[%clk 0:00:44]} 32. c4 {[%clk 0:01:00]}  e6 {[%clk 0:00:39]} 33. Ndb6 {[%clk 0:00:49]}  Rc6 {[%clk 0:00:39]} 34. c5 {[%clk 0:00:48]}  Kg6 {[%clk 0:00:31]} 35. Rc1 {[%clk 0:00:40]}  gxf4 {[%clk 0:00:25]} 36. gxf4 {[%clk 0:00:39]}  Kf5 {[%clk 0:00:25]} 37. Nc4 {[%clk 0:00:40]}  Kg6 {[%clk 0:00:22]} 38. Nd6 {[%clk 0:00:35]}  Rbc7 {[%clk 0:00:20]} 39. Rg1 {[%clk 0:00:29]}  Kh7 {[%clk 0:00:18]} 40. Ne8 {[%clk 0:00:29]}  Bh8 {[%clk 0:00:10]} 41. Nxc7 {[%clk 0:00:28]}  Rxc7 {[%clk 0:00:11]} 42. Ka3 {[%clk 0:00:14]}  f6 {[%clk 0:00:11]} 43. Re1 {[%clk 0:00:12]}  Kg6 {[%clk 0:00:10]} 44. Rd8 {[%clk 0:00:11]}  Bg7 {[%clk 0:00:10]} 45. b4 {[%clk 0:00:08]}  axb4+ {[%clk 0:00:09]} 46. Kxb4 {[%clk 0:00:08]}  fxe5 {[%clk 0:00:10]} 47. fxe5 {[%clk 0:00:08]}  Kf5 {[%clk 0:00:10]} 48. Kb5 {[%clk 0:00:08]}  Bxe5 {[%clk 0:00:08]} 49. Rf8+ {[%clk 0:00:08]}  Kg5 {[%clk 0:00:01]} 50. Rxe5+ {[%clk 0:00:08]}  Kh4 {[%clk 0:00:02]} 51. Re3 {[%clk 0:00:08]}  Rb7+ {[%clk 0:00:02]} 52. Nb6 {[%clk 0:00:07]}  Ra7 {[%clk 0:00:03]} 53. c6 {[%clk 0:00:08]}  Ra1 {[%clk 0:00:03]} 54. c7 {[%clk 0:00:07]}  Rb1+ {[%clk 0:00:03]} 55. Kc6 {[%clk 0:00:07]}  e5 {[%clk 0:00:04]} 56. Re4 {[%clk 0:00:06]}  Rc1+ {[%clk 0:00:04]} 57. Kb7 {[%clk 0:00:06]}  Kh3 {[%clk 0:00:05]} 58. Rxg4 {[%clk 0:00:06]}  hxg4 {[%clk 0:00:04]} 59. Rh8+ {[%clk 0:00:06]}  Kg2 {[%clk 0:00:03]} 60. c8=Q {[%clk 0:00:07]}  Rxc8 {[%clk 0:00:03]} 61. Kxc8 {[%clk 0:00:08]}  e4 {[%clk 0:00:04]} 62. Nc4 {[%clk 0:00:08]}  Kf3 {[%clk 0:00:03]} 63. Ne5+ {[%clk 0:00:07]}  Kf4 {[%clk 0:00:04]} 64. Nxg4 {[%clk 0:00:07]}  Kxg4 {[%clk 0:00:04]} 65. Re8 {[%clk 0:00:07]}  Kf3 {[%clk 0:00:05]} 66. h4 {[%clk 0:00:07]}  Kf4 {[%clk 0:00:05]} 67. h5 {[%clk 0:00:07]}  Kg5 {[%clk 0:00:06]} 68. Rxe4 {[%clk 0:00:06]}  Kf5 {[%clk 0:00:04]} 69. Re1 {[%clk 0:00:06]} 1-0

[Event "December 12 Late 2023"]
[Site "https://www.chess.com"]
[Date "2023.12.12"]
[Round "6"]
[White "Marin Posada, Sebastian"]
[Black "Onyshchuk, Volodymyr"]
[Result "0-1"]
[Board "34"]
[TimeControl "180+1"]
[WhiteFideId "4402782"]
[BlackFideId "14114038"]
[WhiteElo "2464"]
[BlackElo "2758"]
[WhiteTeam "COL"]
[BlackTeam "UKR"]
[WhiteClock "0:00:00"]
[BlackClock "0:00:22"]

1. d4 {[%clk 0:03:00]}  d6 {[%clk 0:03:00]} 2. e4 {[%clk 0:02:58]}  Nf6 {[%clk 0:02:59]} 3. Nc3 {[%clk 0:02:58]}  g6 {[%clk 0:02:59]} 4. Nf3 {[%clk 0:02:57]}  Bg7 {[%clk 0:03:00]} 5. Be2 {[%clk 0:02:57]}  O-O {[%clk 0:03:00]} 6. O-O {[%clk 0:02:57]}  a6 {[%clk 0:03:01]} 7. a4 {[%clk 0:02:56]}  Nc6 {[%clk 0:03:01]} 8. a5 {[%clk 0:02:55]}  e5 {[%clk 0:02:55]} 9. d5 {[%clk 0:02:54]}  Ne7 {[%clk 0:02:55]} 10. Nd2 {[%clk 0:02:54]}  Ne8 {[%clk 0:02:43]} 11. Nc4 {[%clk 0:02:50]}  f5 {[%clk 0:02:43]} 12. f3 {[%clk 0:02:40]}  f4 {[%clk 0:02:41]} 13. b4 {[%clk 0:02:16]}  Bd7 {[%clk 0:02:41]} 14. Nd2 {[%clk 0:01:46]}  g5 {[%clk 0:02:38]} 15. Na4 {[%clk 0:01:35]}  h5 {[%clk 0:02:26]} 16. c4 {[%clk 0:01:34]}  Rf6 {[%clk 0:02:03]} 17. c5 {[%clk 0:01:32]}  Nc8 {[%clk 0:01:59]} 18. Nc4 {[%clk 0:01:24]}  Rg6 {[%clk 0:01:23]} 19. cxd6 {[%clk 0:01:16]}  Ncxd6 {[%clk 0:01:22]} 20. Bb2 {[%clk 0:01:07]}  Qe7 {[%clk 0:01:21]} 21. Nc5 {[%clk 0:01:00]}  Bc8 {[%clk 0:01:20]} 22. Qb3 {[%clk 0:00:43]}  g4 {[%clk 0:01:18]} 23. Ne6 {[%clk 0:00:28]}  Bxe6 {[%clk 0:01:13]} 24. dxe6 {[%clk 0:00:29]}  Qxe6 {[%clk 0:01:13]} 25. Qc2 {[%clk 0:00:12]}  Qe7 {[%clk 0:01:05]} 26. Nxd6 {[%clk 0:00:09]}  Nxd6 {[%clk 0:01:05]} 27. Rac1 {[%clk 0:00:04]}  Rc8 {[%clk 0:01:04]} 28. Qc5 {[%clk 0:00:03]}  Qg5 {[%clk 0:00:52]} 29. Rfd1 {[%clk 0:00:03]}  Kh7 {[%clk 0:00:45]} 30. fxg4 {[%clk 0:00:02]}  hxg4 {[%clk 0:00:45]} 31. Rd5 {[%clk 0:00:02]}  f3 {[%clk 0:00:41]} 32. Bf1 {[%clk 0:00:03]}  g3 {[%clk 0:00:35]} 33. h3 {[%clk 0:00:00]}  Re8 {[%clk 0:00:22]} 0-1

[Event "December 12 Late 2023"]
[Site "https://www.chess.com"]
[Date "2023.12.12"]
[Round "6"]
[White "Zou, Chen"]
[Black "Todev, Simeon"]
[Result "1-0"]
[Board "35"]
[TimeControl "180+1"]
[WhiteFideId "8610959"]
[BlackFideId "2925133"]
[WhiteElo "2758"]
[BlackElo "2365"]
[WhiteTeam "CHN"]
[BlackTeam "BUL"]
[WhiteClock "0:00:50"]
[BlackClock "0:00:07"]

1. g3 {[%clk 0:03:00]}  d5 {[%clk 0:02:50]} 2. Bg2 {[%clk 0:03:01]}  Nf6 {[%clk 0:02:50]} 3. Nf3 {[%clk 0:02:59]}  Nc6 {[%clk 0:02:50]} 4. O-O {[%clk 0:03:00]}  e5 {[%clk 0:02:50]} 5. d3 {[%clk 0:02:59]}  Bd6 {[%clk 0:02:48]} 6. Nbd2 {[%clk 0:02:59]}  h6 {[%clk 0:02:48]} 7. e4 {[%clk 0:03:00]}  dxe4 {[%clk 0:02:48]} 8. dxe4 {[%clk 0:03:01]}  Bg4 {[%clk 0:02:48]} 9. c3 {[%clk 0:03:01]}  O-O {[%clk 0:02:47]} 10. Qc2 {[%clk 0:03:01]}  Qe7 {[%clk 0:02:47]} 11. Re1 {[%clk 0:03:01]}  Rad8 {[%clk 0:02:47]} 12. Nc4 {[%clk 0:02:55]}  Bc5 {[%clk 0:02:47]} 13. Ne3 {[%clk 0:02:52]}  Bxe3 {[%clk 0:02:37]} 14. Bxe3 {[%clk 0:02:53]}  b6 {[%clk 0:02:18]} 15. Nh4 {[%clk 0:02:52]}  Qd7 {[%clk 0:02:13]} 16. Nf5 {[%clk 0:02:46]}  Ne7 {[%clk 0:02:03]} 17. Nxe7+ {[%clk 0:02:36]}  Qxe7 {[%clk 0:02:04]} 18. h3 {[%clk 0:02:35]}  Bh5 {[%clk 0:02:02]} 19. f3 {[%clk 0:02:34]}  Rd7 {[%clk 0:01:58]} 20. h4 {[%clk 0:02:11]}  Rfd8 {[%clk 0:01:54]} 21. Kf2 {[%clk 0:02:06]}  Qe6 {[%clk 0:01:44]} 22. b3 {[%clk 0:01:56]}  c5 {[%clk 0:01:23]} 23. Kg1 {[%clk 0:01:52]}  Bg6 {[%clk 0:01:14]} 24. Rad1 {[%clk 0:01:47]}  Nd5 {[%clk 0:00:48]} 25. Bf2 {[%clk 0:01:25]}  Nc7 {[%clk 0:00:39]} 26. Kh2 {[%clk 0:01:24]}  Rxd1 {[%clk 0:00:23]} 27. Rxd1 {[%clk 0:01:24]}  Qe7 {[%clk 0:00:22]} 28. Bh3 {[%clk 0:01:23]}  f6 {[%clk 0:00:18]} 29. Kg2 {[%clk 0:01:17]}  Bf7 {[%clk 0:00:17]} 30. Rd2 {[%clk 0:01:16]}  Be6 {[%clk 0:00:16]} 31. Bf5 {[%clk 0:01:02]}  Bxf5 {[%clk 0:00:11]} 32. exf5 {[%clk 0:01:03]}  Nd5 {[%clk 0:00:08]} 33. Qd1 {[%clk 0:01:00]}  Qd7 {[%clk 0:00:05]} 34. Kg1 {[%clk 0:00:51]}  b5 {[%clk 0:00:04]} 35. c4 {[%clk 0:00:51]}  bxc4 {[%clk 0:00:04]} 36. bxc4 {[%clk 0:00:52]}  Qxf5 {[%clk 0:00:04]} 37. Rxd5 {[%clk 0:00:50]}  Rb8 {[%clk 0:00:05]} 38. Rd8+ {[%clk 0:00:50]}  Rxd8 {[%clk 0:00:05]} 39. Qxd8+ {[%clk 0:00:51]}  Kh7 {[%clk 0:00:06]} 40. Qd1 {[%clk 0:00:51]}  Qe6 {[%clk 0:00:05]} 41. Qd3+ {[%clk 0:00:51]}  f5 {[%clk 0:00:05]} 42. Bxc5 {[%clk 0:00:51]}  e4 {[%clk 0:00:06]} 43. fxe4 {[%clk 0:00:51]}  fxe4 {[%clk 0:00:07]} 44. Qe2 {[%clk 0:00:50]}  Qe5 {[%clk 0:00:07]} 45. Bf2 {[%clk 0:00:50]}  Kg6 {[%clk 0:00:07]} 46. c5 {[%clk 0:00:51]}  Qa1+ {[%clk 0:00:06]} 47. Kg2 {[%clk 0:00:51]}  Qe5 {[%clk 0:00:06]} 48. Qe3 {[%clk 0:00:51]}  Kf7 {[%clk 0:00:06]} 49. c6 {[%clk 0:00:51]}  Ke6 {[%clk 0:00:04]} 50. Qxa7 {[%clk 0:00:50]}  Qd5 {[%clk 0:00:04]} 51. Qd7+ {[%clk 0:00:50]}  Qxd7 {[%clk 0:00:05]} 52. cxd7 {[%clk 0:00:50]}  Kxd7 {[%clk 0:00:05]} 53. Be3 {[%clk 0:00:50]}  Ke6 {[%clk 0:00:05]} 54. h5 {[%clk 0:00:50]}  Kd5 {[%clk 0:00:05]} 55. a4 {[%clk 0:00:50]}  Kc4 {[%clk 0:00:06]} 56. a5 {[%clk 0:00:51]}  Kb5 {[%clk 0:00:07]} 57. Bd4 {[%clk 0:00:50]} 1-0

[Event "December 12 Late 2023"]
[Site "https://www.chess.com"]
[Date "2023.12.12"]
[Round "6"]
[White "Sivakumar, Shaaketh"]
[Black "Chigaev, Maksim"]
[Result "0-1"]
[Board "37"]
[TimeControl "180+1"]
[WhiteFideId "30940176"]
[BlackFideId "4108116"]
[WhiteElo "2583"]
[BlackElo "2890"]
[WhiteTeam "USA"]
[BlackTeam "ESP"]
[WhiteClock "0:01:40"]
[BlackClock "0:02:30"]

1. e4 {[%clk 0:03:00]}  c5 {[%clk 0:02:59]} 2. Nf3 {[%clk 0:02:59]}  g6 {[%clk 0:02:59]} 3. d4 {[%clk 0:02:59]}  cxd4 {[%clk 0:03:00]} 4. Qxd4 {[%clk 0:02:59]}  Nf6 {[%clk 0:03:00]} 5. c4 {[%clk 0:03:00]}  Nc6 {[%clk 0:03:00]} 6. Qe3 {[%clk 0:02:58]}  d6 {[%clk 0:03:00]} 7. h3 {[%clk 0:02:58]}  Bg7 {[%clk 0:03:01]} 8. Nc3 {[%clk 0:02:59]}  O-O {[%clk 0:03:01]} 9. Be2 {[%clk 0:02:59]}  Qb6 {[%clk 0:03:01]} 10. Qxb6 {[%clk 0:02:57]}  axb6 {[%clk 0:03:02]} 11. Be3 {[%clk 0:02:56]}  Nd7 {[%clk 0:02:58]} 12. Kd2 {[%clk 0:02:48]}  Nc5 {[%clk 0:02:57]} 13. Bd3 {[%clk 0:02:33]}  Be6 {[%clk 0:02:51]} 14. b3 {[%clk 0:02:12]}  Nb4 {[%clk 0:02:40]} 15. Be2 {[%clk 0:02:02]}  Nxa2 {[%clk 0:02:36]} 16. Bxc5 {[%clk 0:01:40]}  Bxc3+ {[%clk 0:02:30]} 17. Ke3 {[%clk 0:01:40]} 0-1

[Event "December 12 Late 2023"]
[Site "https://www.chess.com"]
[Date "2023.12.12"]
[Round "6"]
[White "Perea Fruet, Lorenzo"]
[Black "Popov, Konstantin"]
[Result "0-1"]
[Board "38"]
[TimeControl "180+1"]
[WhiteFideId "24595870"]
[BlackFideId "34137910"]
[WhiteElo "2576"]
[BlackElo "2859"]
[WhiteTeam "ESP"]
[BlackTeam "FID"]
[WhiteClock "0:01:01"]
[BlackClock "0:02:36"]

1. f4 {[%clk 0:02:54]}  d5 {[%clk 0:02:59]} 2. Nf3 {[%clk 0:02:53]}  Nc6 {[%clk 0:02:59]} 3. g3 {[%clk 0:02:51]}  h5 {[%clk 0:02:59]} 4. h3 {[%clk 0:02:49]}  Qd6 {[%clk 0:02:55]} 5. d3 {[%clk 0:02:40]}  Qg6 {[%clk 0:02:53]} 6. Rg1 {[%clk 0:02:29]}  Nf6 {[%clk 0:02:53]} 7. Nbd2 {[%clk 0:02:24]}  e5 {[%clk 0:02:48]} 8. Nxe5 {[%clk 0:02:20]}  Nxe5 {[%clk 0:02:47]} 9. fxe5 {[%clk 0:02:20]}  Bc5 {[%clk 0:02:47]} 10. e3 {[%clk 0:01:13]}  Bxe3 {[%clk 0:02:44]} 11. Rg2 {[%clk 0:01:13]}  Bxh3 {[%clk 0:02:43]} 12. Qe2 {[%clk 0:01:10]}  Bxg2 {[%clk 0:02:42]} 13. Qxe3 {[%clk 0:01:10]}  Ng4 {[%clk 0:02:41]} 14. Qc5 {[%clk 0:01:00]}  Bxf1 {[%clk 0:02:39]} 15. Qb5+ {[%clk 0:01:01]}  Qc6 {[%clk 0:02:38]} 16. Qxc6+ {[%clk 0:01:01]}  bxc6 {[%clk 0:02:39]} 17. Kxf1 {[%clk 0:01:01]}  Nxe5 {[%clk 0:02:39]} 18. Ke2 {[%clk 0:01:02]}  h4 {[%clk 0:02:38]} 19. gxh4 {[%clk 0:01:01]}  Rxh4 {[%clk 0:02:39]} 20. Nb3 {[%clk 0:01:02]}  Rh2+ {[%clk 0:02:39]} 21. Ke3 {[%clk 0:01:02]}  Rxc2 {[%clk 0:02:37]} 22. Kd4 {[%clk 0:01:01]}  f6 {[%clk 0:02:36]} 0-1

[Event "December 12 Late 2023"]
[Site "https://www.chess.com"]
[Date "2023.12.12"]
[Round "6"]
[White "Hong, Andrew"]
[Black "Espinoza Villanueva, Rodrigo"]
[Result "1-0"]
[Board "39"]
[TimeControl "180+1"]
[WhiteFideId "2099438"]
[BlackFideId "5140188"]
[WhiteElo "2817"]
[BlackElo "2571"]
[WhiteTeam "USA"]
[BlackTeam "MEX"]
[WhiteClock "0:00:04"]
[BlackClock "0:00:00"]

1. e4 {[%clk 0:03:00]}  c5 {[%clk 0:02:59]} 2. Nf3 {[%clk 0:02:59]}  d6 {[%clk 0:02:58]} 3. c3 {[%clk 0:02:59]}  Nf6 {[%clk 0:02:57]} 4. Bd3 {[%clk 0:03:00]}  Nc6 {[%clk 0:02:56]} 5. h3 {[%clk 0:03:00]}  e5 {[%clk 0:02:51]} 6. O-O {[%clk 0:03:00]}  Be7 {[%clk 0:02:51]} 7. Bc2 {[%clk 0:03:00]}  Rg8 {[%clk 0:02:51]} 8. d4 {[%clk 0:03:00]}  Qc7 {[%clk 0:02:46]} 9. Na3 {[%clk 0:02:57]}  h6 {[%clk 0:02:43]} 10. Ba4 {[%clk 0:02:35]}  Bd7 {[%clk 0:02:38]} 11. Nc4 {[%clk 0:02:31]}  g5 {[%clk 0:02:34]} 12. dxe5 {[%clk 0:02:28]}  dxe5 {[%clk 0:02:33]} 13. Bxc6 {[%clk 0:02:21]}  Bxc6 {[%clk 0:02:32]} 14. Nfxe5 {[%clk 0:02:06]}  Bxe4 {[%clk 0:02:22]} 15. Re1 {[%clk 0:02:04]}  Bc6 {[%clk 0:02:18]} 16. Nxc6 {[%clk 0:01:55]}  Qxc6 {[%clk 0:02:19]} 17. Nd6+ {[%clk 0:01:48]}  Kf8 {[%clk 0:02:17]} 18. Nf5 {[%clk 0:01:48]}  Re8 {[%clk 0:02:09]} 19. Nxh6 {[%clk 0:01:26]}  Rg6 {[%clk 0:02:09]} 20. Nf5 {[%clk 0:01:27]}  Bd8 {[%clk 0:01:52]} 21. Rxe8+ {[%clk 0:01:16]}  Qxe8 {[%clk 0:01:53]} 22. Be3 {[%clk 0:01:16]}  b6 {[%clk 0:01:51]} 23. Qd6+ {[%clk 0:01:11]}  Be7 {[%clk 0:01:45]} 24. Qc7 {[%clk 0:01:04]}  Nh5 {[%clk 0:01:26]} 25. Rd1 {[%clk 0:00:54]}  Ng7 {[%clk 0:01:22]} 26. Nxe7 {[%clk 0:00:45]}  Qxe7 {[%clk 0:01:22]} 27. Rd7 {[%clk 0:00:42]}  Qe6 {[%clk 0:01:18]} 28. Qxa7 {[%clk 0:00:26]}  g4 {[%clk 0:01:12]} 29. h4 {[%clk 0:00:16]}  g3 {[%clk 0:01:08]} 30. Qa8+ {[%clk 0:00:15]}  Ne8 {[%clk 0:01:08]} 31. Qd5 {[%clk 0:00:15]}  gxf2+ {[%clk 0:01:00]} 32. Bxf2 {[%clk 0:00:15]}  Qf6 {[%clk 0:00:56]} 33. h5 {[%clk 0:00:13]}  Rg5 {[%clk 0:00:56]} 34. Rxf7+ {[%clk 0:00:13]}  Qxf7 {[%clk 0:00:56]} 35. Qxg5 {[%clk 0:00:14]}  Qd7 {[%clk 0:00:44]} 36. Qh6+ {[%clk 0:00:12]}  Ng7 {[%clk 0:00:42]} 37. Qf6+ {[%clk 0:00:07]}  Kg8 {[%clk 0:00:41]} 38. h6 {[%clk 0:00:05]}  Qd1+ {[%clk 0:00:30]} 39. Kh2 {[%clk 0:00:05]}  Qh5+ {[%clk 0:00:26]} 40. Bh4 {[%clk 0:00:03]}  Ne8 {[%clk 0:00:26]} 41. Qe6+ {[%clk 0:00:03]}  Kh7 {[%clk 0:00:23]} 42. Kh3 {[%clk 0:00:03]}  c4 {[%clk 0:00:17]} 43. Qxc4 {[%clk 0:00:03]}  Nd6 {[%clk 0:00:14]} 44. Qe6 {[%clk 0:00:02]}  Nf7 {[%clk 0:00:12]} 45. Qf6 {[%clk 0:00:02]}  Nxh6 {[%clk 0:00:10]} 46. Qe7+ {[%clk 0:00:03]}  Nf7 {[%clk 0:00:08]} 47. Qe4+ {[%clk 0:00:03]}  Kh6 {[%clk 0:00:05]} 48. Qe6+ {[%clk 0:00:03]}  Kh7 {[%clk 0:00:05]} 49. Qg4 {[%clk 0:00:04]}  Qd5 {[%clk 0:00:02]} 50. Qf3 {[%clk 0:00:03]}  Qe6+ {[%clk 0:00:00]} 51. Kh2 {[%clk 0:00:04]} 1-0

[Event "December 12 Late 2023"]
[Site "https://www.chess.com"]
[Date "2023.12.12"]
[Round "6"]
[White "Kadric, Denis"]
[Black "Filgueira, Hernan"]
[Result "1-0"]
[Board "40"]
[TimeControl "180+1"]
[WhiteFideId "14403803"]
[BlackFideId "101770"]
[WhiteElo "2797"]
[BlackElo "2567"]
[WhiteTeam "MNE"]
[BlackTeam "ARG"]
[WhiteClock "0:00:53"]
[BlackClock "0:00:10"]

1. e4 {[%clk 0:03:00]}  d5 {[%clk 0:02:46]} 2. exd5 {[%clk 0:02:59]}  Qxd5 {[%clk 0:02:43]} 3. Nf3 {[%clk 0:02:44]}  Bg4 {[%clk 0:02:42]} 4. Be2 {[%clk 0:02:44]}  Nc6 {[%clk 0:02:39]} 5. h3 {[%clk 0:02:44]}  Bxf3 {[%clk 0:02:36]} 6. Bxf3 {[%clk 0:02:45]}  Qe6+ {[%clk 0:02:36]} 7. Qe2 {[%clk 0:02:46]}  Qxe2+ {[%clk 0:02:36]} 8. Bxe2 {[%clk 0:02:46]}  Nd4 {[%clk 0:02:36]} 9. Bd1 {[%clk 0:02:46]}  e5 {[%clk 0:02:35]} 10. d3 {[%clk 0:02:47]}  f5 {[%clk 0:02:34]} 11. Nd2 {[%clk 0:02:47]}  Bd6 {[%clk 0:02:30]} 12. c3 {[%clk 0:02:46]}  Nc6 {[%clk 0:02:29]} 13. b4 {[%clk 0:02:40]}  a6 {[%clk 0:02:28]} 14. Bb3 {[%clk 0:02:35]}  Nf6 {[%clk 0:02:24]} 15. O-O {[%clk 0:02:30]}  g6 {[%clk 0:02:19]} 16. a4 {[%clk 0:02:29]}  Kf8 {[%clk 0:01:58]} 17. Bb2 {[%clk 0:02:16]}  Kg7 {[%clk 0:01:55]} 18. Nc4 {[%clk 0:02:13]}  Rhe8 {[%clk 0:01:53]} 19. b5 {[%clk 0:02:07]}  Ne7 {[%clk 0:01:45]} 20. Rfe1 {[%clk 0:02:01]}  Ned5 {[%clk 0:01:36]} 21. g3 {[%clk 0:01:48]}  h5 {[%clk 0:01:33]} 22. Na5 {[%clk 0:01:44]}  axb5 {[%clk 0:01:27]} 23. axb5 {[%clk 0:01:41]}  b6 {[%clk 0:01:24]} 24. Nc6 {[%clk 0:01:42]}  Rxa1 {[%clk 0:01:18]} 25. Bxa1 {[%clk 0:01:43]}  h4 {[%clk 0:01:16]} 26. Bxd5 {[%clk 0:01:35]}  Nxd5 {[%clk 0:01:15]} 27. c4 {[%clk 0:01:36]}  Nf6 {[%clk 0:01:01]} 28. Bxe5 {[%clk 0:01:24]}  Bxe5 {[%clk 0:00:49]} 29. Rxe5 {[%clk 0:01:25]}  Rxe5 {[%clk 0:00:49]} 30. Nxe5 {[%clk 0:01:26]}  hxg3 {[%clk 0:00:49]} 31. fxg3 {[%clk 0:01:27]}  Nh5 {[%clk 0:00:46]} 32. Kf2 {[%clk 0:01:27]}  Kf6 {[%clk 0:00:47]} 33. d4 {[%clk 0:01:24]}  g5 {[%clk 0:00:46]} 34. Kf3 {[%clk 0:01:21]}  Ke6 {[%clk 0:00:45]} 35. Nd3 {[%clk 0:01:18]}  Nf6 {[%clk 0:00:42]} 36. Nf2 {[%clk 0:01:17]}  Ne8 {[%clk 0:00:36]} 37. h4 {[%clk 0:01:17]}  gxh4 {[%clk 0:00:36]} 38. gxh4 {[%clk 0:01:18]}  Nd6 {[%clk 0:00:36]} 39. Kf4 {[%clk 0:01:03]}  Kf6 {[%clk 0:00:35]} 40. Nd1 {[%clk 0:00:54]}  Nxc4 {[%clk 0:00:34]} 41. Ne3 {[%clk 0:00:54]}  Na3 {[%clk 0:00:17]} 42. Nd5+ {[%clk 0:00:54]}  Ke6 {[%clk 0:00:17]} 43. Nxc7+ {[%clk 0:00:54]}  Kd6 {[%clk 0:00:16]} 44. h5 {[%clk 0:00:53]}  Kxc7 {[%clk 0:00:12]} 45. h6 {[%clk 0:00:54]}  Nxb5 {[%clk 0:00:12]} 46. h7 {[%clk 0:00:52]}  Nxd4 {[%clk 0:00:10]} 47. h8=Q {[%clk 0:00:53]} 1-0